Cogmind - Beta 16 @@@ ROGUE MODE // 2025.11.21 @ 17:24:48 Player: beans Result: Destroyed self via exploding Nuclear Reactor Performance ------------- Evolutions (2) 1000 Regions Visited (4) 800 Robots Destroyed (45) 225 Value Destroyed (1016) 1016 Prototype IDs (6) 120 Alien Tech Used (0) 0 Bonus (0) 0 TOTAL SCORE: 3161 Bonus ------- None Cogmind --------- Core Integrity 0/550 Matter 253/300 Energy 40/240 System Corruption 1% Temperature Cool (0) Movement Core (150) Ox2 Location -8/Materials Parts ------- > --- POWER (1) -------- Nuclear Core > --- PROPULSION (2) --- (None) > --- UTILITY (6) ------ Advanced Targeting Computer Hacking Suite > --- WEAPON (2) ------- (None) > --- INVENTORY (5) ---- Heavy EM Shotgun EM Pulse Cannon Shock Bomb Launcher Peak State ------------ > --- POWER ------------ Heavy Ion Engine > --- PROPULSION ------- Armored Treads Armored Treads > --- UTILITY ---------- Cooling System Advanced Targeting Computer Light Armor Plating Hacking Suite > --- WEAPON ----------- Heavy EM Shotgun EM Pulse Cannon > --- INVENTORY -------- Cooled Ion Engine Improved Flight Unit EM Pulse Cannon EM Pulse Cannon Grenade Launcher [Rating: 26] Favorites ----------- Power Improved Ion Engine Engine Improved Ion Engine Power Core Nuclear Core Propulsion Armored Treads Treads Armored Treads Leg Aluminum Leg Hover Unit Hover Unit Flight Unit Improved Flight Unit Utility Hacking Suite Device Cooling System Processor Advanced Targeting Computer Hackware Hacking Suite Protection Light Armor Plating Weapon EM Pulse Cannon Energy Gun EM Pulse Gun Energy Cannon EM Pulse Cannon Launcher Grenade Launcher Build | -11 -10 -10 -9 -8 ------- Run | Yrd Mat Min Mat Mat Slots Evolved 4 | . . . 2 2 Power . | . . . . . Propulsion . | . . . . . Utility 4 | . . . 2 2 Weapon . | . . . . . Parts Attached 31 | 4 4 1 16 6 Power 6 | 1 . . 4 1 Engine 5 | 1 . . 4 . Core 1 | . . . . 1 Reactor . | . . . . . Propulsion 7 | 2 2 . 2 1 Treads 2 | . . . 2 . Leg 2 | 2 . . . . Wheel . | . . . . . Hover 2 | . 2 . . . Flight 1 | . . . . 1 Utility 6 | . 2 . 3 1 Device 2 | . . . 2 . Storage . | . . . . . Processor 1 | . . . . 1 Hackware 1 | . 1 . . . Protection 2 | . 1 . 1 . Artifact . | . . . . . Weapon 12 | 1 . 1 7 3 Energy Gun 4 | 1 . . 2 1 Energy Cannon 6 | . . . 5 1 Ballistic Gun . | . . . . . Ballistic Cannon . | . . . . . Launcher 2 | . . 1 . 1 Special Weapon . | . . . . . Impact Weapon . | . . . . . Slashing Weapon . | . . . . . Piercing Weapon . | . . . . . Special Melee Weapon . | . . . . . Unidentified Prototypes 6 | . . . 4 2 Parts Lost 13 | . 3 1 4 5 Power 2 | . . . 1 1 Propulsion 3 | . 2 . . 1 Utility 3 | . 1 . . 2 Weapon 5 | . . 1 3 1 Highest Loss Streak 3 | . 3 1 2 3 To Critical Strikes 1 | . . . . 1 Average Backups 3 | . 1 1 3 4 Power . | . . . . . Propulsion . | . . 1 1 . Utility . | . . . . . Weapon 2 | . . . 2 3 Tool/Special . | . . . . . Unused Backups 1 | . . . . 1 Power . | . . . . . Propulsion . | . . . . . Utility . | . . . . . Weapon 1 | . . . . 1 Tool/Special . | . . . . . Average Slot Usage (%) 72 | . 68 42 78 63 Engine 10 | . 14 14 10 6 Treads 15 | . . . 19 12 Hover 1 | . 16 . . . Device 7 | . . . 9 8 Hackware 10 | . 9 14 11 9 Protection 8 | . 5 . 9 6 Energy Gun 2 | . 14 4 . 5 Energy Cannon 12 | . . . 17 7 Launcher 1 | . . 9 . . Peak Build Rating 26 | 4 8 5 22 26 Average Rating 16 | 2 6 5 18 20 On Entrance 7 | . 4 5 5 22 Avg Prop Armor Cover (%) 7 | . . . . 7 Naked Turns . | . . . . . Heaviest Build 25 | 5 8 6 25 25 Greatest Support 40 | 20 20 3 40 40 Greatest Overweight (x) 6 | . 1 1 6 . Average Overweight (x) . | . . 1 . . Largest Inventory Capacity 5 | 5 5 5 5 5 Average Capacity 5 | 5 5 5 5 5 Most Carried 5 | 3 3 2 5 5 Average Carried 3 | . 1 1 3 4 Final Capacity 5 | 5 5 5 5 5 Final Carried 5 | . 2 1 5 3 Class Distribution -------------------- 76% | Mutant 23% | Scavenger-Mutant Dominant Class ---------------- Mutant | -10/Materials Mutant | -10/Mines Mutant | -9/Materials Mutant | -8/Materials Resources | -11 -10 -10 -9 -8 ----------- Run | Yrd Mat Min Mat Mat Matter Collected 541 | 240 28 63 167 43 Remotely . | . . . . . Salvage Created 1515 | . 78 14 1038 385 Parts 99 | . 10 4 64 21 Haulers Intercepted 5 | . . . 5 . Recyclers Shooed . | . . . . . Parts Field Recycled . | . . . . . Retrieved Matter . | . . . . . Parts Self-Destructed . | . . . . . Prevented . | . . . . . Parts Restored . | . . . . . Kills | -11 -10 -10 -9 -8 ------- Run | Yrd Mat Min Mat Mat Combat Hostiles Destroyed 27 | . 2 4 17 4 Guns 4 | . 1 . 2 1 Cannons 18 | . . . 15 3 AOE 5 | . 1 4 . . Classes Destroyed 9 | . 4 . 4 1 Worker 4 | . 1 . 1 2 Hauler 5 | . . . 5 . Recycler 1 | . . . . 1 Operator 3 | . 1 . 2 . Watcher 5 | . 1 . 2 2 Swarmer 10 | . 2 4 4 . Grunt 12 | . . . 10 2 Brawler 1 | . . . 1 . Sentry 4 | . . . 2 2 Best Kill Streak 4 | . 4 3 4 4 Combat Bots Only 4 | . 2 3 4 3 Max Kills in Single Turn 3 | . 3 2 1 2 Gunslinging . | . . . . . Exploded 2 | . 1 2 . . Melee . | . . . . . Uniques/NPCs Destroyed . | . . . . . Combat | -11 -10 -10 -9 -8 -------- Run | Yrd Mat Min Mat Mat Hostile Shots Fired 256 | . 57 9 72 118 Missed 80 | . 20 . 20 40 Hits 176 | . 37 9 52 78 Projectile 176 | . 37 9 52 78 Critical Strikes 8 | . 1 . 3 4 Damage Taken 2217 | . 382 128 585 1122 Core 972 | . 177 52 168 575 Absorbed by Shields . | . . . . . Core Remaining (%) 55 | 100 . 8 58 . Volleys Fired 129 | 3 25 7 69 25 Largest 2 | 1 1 1 2 2 Hottest 131 | 40 40 40 131 113 Shots Fired 165 | 3 25 7 95 35 Gun 58 | 3 25 1 19 10 Cannon 94 | . . . 76 18 Launcher 13 | . . 6 . 7 Special . | . . . . . Kinetic . | . . . . . Thermal 1 | . . . 1 . Explosive 6 | . . 6 . . Electromagnetic 158 | 3 25 1 94 35 Robot Hit Streak 11 | 1 6 . 8 11 Robot Miss Streak 8 | 1 3 6 8 3 Penetration Max . | . . . . . Secondary Targets . | . . . . . Shots Hit Robots 91 | 1 14 . 56 20 Core Hits 50 | . 7 4 27 12 Critical Kills . | . . . . . Critical Parts Destroyed . | . . . . . Critical Strikes 2 | . 1 . . 1 Corrupt 2 | . 1 . . 1 Melee Attacks . | . . . . . Impact . | . . . . . Slashing . | . . . . . Piercing . | . . . . . Sneak Attacks . | . . . . . Combat Hostiles . | . . . . . Follow-up Attacks . | . . . . . Damage Inflicted 2917 | 15 355 252 1419 876 Guns 470 | 15 222 . 132 101 Cannons 1613 | . . . 1224 389 Explosions 834 | . 133 252 63 386 Melee . | . . . . . Ramming . | . . . . . Kinetic . | . . . . . Thermal 394 | . 133 . 63 198 Explosive 308 | . . 252 . 56 Electromagnetic 2215 | 15 222 . 1356 622 Impact . | . . . . . Slashing . | . . . . . Piercing . | . . . . . Highest Corruption 1 | . . . . 1 Average Corruption 1 | . . . . 1 Corruption Purged . | . . . . . Corruption Blocked . | . . . . . Effects 2 | . . . . 2 Matter Fused 1 | . . . . 1 Data Loss (minor) 1 | . . . . 1 Overload Shots . | . . . . . Overflow Damage 237 | . 2 11 74 150 Projectiles 66 | . . . 61 5 Explosions 171 | . 2 11 13 145 Melee . | . . . . . Knockbacks . | . . . . . Impact . | . . . . . Kinetic . | . . . . . Secondary . | . . . . . Self-Inflicted Damage 318 | . 34 59 40 185 Shots 7 | . 1 2 1 3 Rammed . | . . . . . Targets Rammed . | . . . . . Kicked . | . . . . . Crushed . | . . . . . Highest Temperature 185 | . 185 . 117 14 Average Temperature 37 | . 69 . 25 8 Received Heat Transfer 585 | . 87 . 210 288 Siege Activations . | . . . . . Martial Activations . | . . . . . Shielding Activations . | . . . . . Robots Disrupted . | . . . . . Combat Hostiles . | . . . . . Robots Corrupted . | . . . . . Combat Hostiles . | . . . . . Parts Fried 9 | . . . 6 3 Impact Corruptions . | . . . . . Robots Melted . | . . . . . Combat Hostiles . | . . . . . Parts Melted . | . . . . . Heat Transferred 350 | . 100 . 100 150 Parts Sabotaged . | . . . . . Parts Stolen . | . . . . . Parts Stripped . | . . . . . Power Chain Reactions 5 | . 1 . 2 2 Alert | -11 -10 -10 -9 -8 ------- Run | Yrd Mat Min Mat Mat Maximum Alert Level 1 | . . . 1 1 Low Security (%) 81 | 100 100 100 77 81 Level 1 18 | . . . 22 18 Level 2 . | . . . . . Level 3 . | . . . . . Level 4 . | . . . . . Level 5 . | . . . . . High Security . | . . . . . Max Security . | . . . . . Peak Influence 265 | . 120 145 250 265 Initial 37 | . . 34 37 30 Average 124 | . 26 76 150 89 Influence Increases 1411 | . 145 171 653 442 Destroy 0b10 Robot/C 540 | . 40 80 340 80 Destroy 0b10 Robot/NC 90 | . 15 . 50 25 Destroy Leader 140 | . 12 10 84 34 Disable Machine 150 | . . 15 75 60 Destroy Structure 101 | . 3 36 29 33 Lose Combat Pursuer 390 | . 75 30 75 210 Influence Decreases 1166 | . 55 166 675 270 Entered New Map 157 | . . 56 58 43 Time Decay 879 | . 25 100 577 177 Lost Part 130 | . 30 10 40 50 Squads Dispatched 8 | . 3 . 3 2 Investigation 3 | . 1 . 1 1 Extermination . | . . . . . Reinforcement 5 | . 2 . 2 1 Assault . | . . . . . Garrison . | . . . . . Intercept . | . . . . . Searches Triggered . | . . . . . Construction Impeded . | . . . . . Haulers Reinforced . | . . . . . Active Scanning Responses . | . . . . . Cargo Convoy Interrupts . | . . . . . Stealth | -11 -10 -10 -9 -8 --------- Run | Yrd Mat Min Mat Mat Distress Signals 6 | . 2 . 2 2 Communications Jammed . | . . . . . Distress Signals . | . . . . . Times Spotted 67 | . 14 5 25 23 Peak Tracking Total 12 | . 7 3 5 12 Tactical Retreats 13 | . 2 1 4 6 Traps | -11 -10 -10 -9 -8 ------- Run | Yrd Mat Min Mat Mat Traps Triggered 3 | . 1 . 1 1 Indirectly . | . . . . . Trap Hack Attempts . | . . . . . Triggered . | . . . . . Disarmed . | . . . . . Reprogrammed . | . . . . . Reused . | . . . . . Traps Extracted . | . . . . . Installed . | . . . . . Triggered . | . . . . . Machines | -11 -10 -10 -9 -8 ---------- Run | Yrd Mat Min Mat Mat Machines Disabled 10 | . . 1 5 4 Max in Single Turn 2 | . . 1 1 2 Machines Repaired . | . . . . . Machines Dismantled . | . . . . . Machines Sabotaged . | . . . . . Overloaded Fab Kills . | . . . . . Hacking | -11 -10 -10 -9 -8 --------- Run | Yrd Mat Min Mat Mat Machines Accessed . | . . . . . Terminals . | . . . . . Fabricators . | . . . . . Repair Stations . | . . . . . Recycling Units . | . . . . . Scanalyzers . | . . . . . Garrison Access . | . . . . . Total Hacks . | . . . . . Successful . | . . . . . Failed . | . . . . . Catastrophic . | . . . . . Database Lockouts . | . . . . . Manual . | . . . . . Terminals . | . . . . . Fabricators . | . . . . . Repair Stations . | . . . . . Recycling Units . | . . . . . Scanalyzers . | . . . . . Garrison Access . | . . . . . Terminal Hacks . | . . . . . Fabricator Hacks . | . . . . . Repair Station Hacks . | . . . . . Recycling Unit Hacks . | . . . . . Scanalyzer . | . . . . . Garrison Access Hacks . | . . . . . Unauthorized Hacks . | . . . . . Terminals . | . . . . . Fabricators . | . . . . . Repair Stations . | . . . . . Recycling Units . | . . . . . Scanalyzers . | . . . . . Garrison Access . | . . . . . Data Cores Recovered . | . . . . . Used . | . . . . . Hacking Detections . | . . . . . Full Trace Events . | . . . . . Feedback Events . | . . . . . Feedback Blocked . | . . . . . Robot Schematics Acquired . | . . . . . Robots Built . | . . . . . Authchips . | . . . . . Time . | . . . . . Total Robot Build Rating . | . . . . . Part Schematics Acquired . | . . . . . Parts Built . | . . . . . Authchips . | . . . . . Time . | . . . . . Total Part Build Rating . | . . . . . Part Studies Acquired . | . . . . . Parts Repaired . | . . . . . Time . | . . . . . Parts Recycled . | . . . . . Recycled Matter . | . . . . . Retrieved Matter . | . . . . . Retrieved Components . | . . . . . Parts Scanalyzed . | . . . . . Part Schematics Acquired . | . . . . . Parts Damaged . | . . . . . Bothacking | -11 -10 -10 -9 -8 ------------ Run | Yrd Mat Min Mat Mat Used RIF Installer . | . . . . . Robots Hacked . | . . . . . Non-combat . | . . . . . Combat . | . . . . . Robot Hacks Applied . | . . . . . Relay Couplers Released . | . . . . . Fabnet Peak Effective % . | . . . . . Robots Rewired . | . . . . . Allies Hacked . | . . . . . Hacks Repelled . | . . . . . Allies | -11 -10 -10 -9 -8 -------- Run | Yrd Mat Min Mat Mat Total Allies . | . . . . . Largest Group . | . . . . . Highest-Rated Group . | . . . . . Highest-Rated Ally . | . . . . . Total Orders . | . . . . . Ally Attacks . | . . . . . Total Damage . | . . . . . Kills . | . . . . . Allies Corrupted . | . . . . . Allies Melted . | . . . . . Intel | -11 -10 -10 -9 -8 ------- Run | Yrd Mat Min Mat Mat Active Infowar (turns) . | . . . . . Robot Analysis Total . | . . . . . Derelict Logs Recovered 1 | . . 1 . . Drone Launches . | . . . . . Drone Recoveries . | . . . . . Exploration | -11 -10 -10 -9 -8 ------------- Run | Yrd Mat Min Mat Mat Turns Passed 2591 | 59 167 215 1766 384 Spaces Moved 1504 | 50 141 180 890 243 Core 439 | 21 4 180 98 136 Treads 899 | . . . 792 107 Legs 60 | 29 31 . . . Wheels . | . . . . . Hover 106 | . 106 . . . Flight . | . . . . . Fastest Speed 50 | 50 56 100 50 50 Average Speed 134 | 90 76 100 162 102 Slowest Speed 350 | 120 120 100 350 170 Overloaded Moves . | . . . . . Propulsion Burnouts . | . . . . . Robots Hopped . | . . . . . Potential Cave-ins . | . . . . . Cave-ins Triggered . | . . . . . Exploration Rate (%) 32 | 4 34 37 50 37 Regions Visited 4 Branch Regions 1 Pre-discovered Areas . | . . . . . Known Exits Taken . | . . . . . Unknown Exits Taken 4 | 1 1 1 1 . Scrap Searched 1 | . . 1 . . Spaces Dug 9 | . . 9 . . Terrain Destroyed 117 | . 3 44 28 42 Melee . | . . . . . Projectile . | . . . . . AOE 117 | . 3 44 28 42 Terrain Rammed . | . . . . . Walls Destroyed . | . . . . . Machines Disabled . | . . . . . Actions | -11 -10 -10 -9 -8 --------- Run | Yrd Mat Min Mat Mat Total 1911 | 60 175 208 1121 347 Wait 198 | . . 21 117 60 Move 1500 | 49 140 179 889 243 Hop . | . . . . . Pick Up 32 | 4 5 . 20 3 Fast Attach 2 | . . . . 2 Attach 27 | 4 3 1 15 4 Detach 4 | . . . 2 2 Swap 4 | . 1 . 2 1 Drop 15 | . 1 . 7 7 Fire 129 | 3 25 7 69 25 Melee . | . . . . . Ram . | . . . . . Kick . | . . . . . Crush . | . . . . . Escape Stasis . | . . . . . Rewire . | . . . . . Trap . | . . . . . Miscellaneous . | . . . . . Route ------- -11/Scrapyard -10/Materials -10/Mines -9/Materials (discovered 2 exits: [*Mat] / [*Min]) -8/Materials History --------- Turn | Location | Event 6 | -11/Scrapyard | Discovered new exit (range 16) 60 | -11/Scrapyard | Entered Materials 212 | -10/Materials | Core integrity fell below 50% 218 | -10/Materials | Discovered new exit (range 9) 227 | -10/Materials | Entered Mines 255 | -10/Mines | Lost 3 parts (2n1u) 261 | -10/Mines | Met a Derelict bent on vengeance 286 | -10/Mines | Core integrity fell below 20% 303 | -10/Mines | Build established: Mutant 329 | -10/Mines | Discovered new exit (range 7) 364 | -10/Mines | Learned Materials stockpile data 442 | -10/Mines | Entered Materials 442 | -9/Materials | Evolved 2 slots: Utility x2 942 | -9/Materials | Discovered new exit (range 15) 953 | -9/Materials | Build established: Scavenger-Mutant 1247 | -9/Materials | Discovered new exit (range 16) 1531 | -9/Materials | Build established: Mutant 2208 | -9/Materials | Entered another Materials area 2208 | -8/Materials | Evolved 2 slots: Utility x2 2489 | -8/Materials | Core integrity fell below 50% 2563 | -8/Materials | Core integrity fell below 20% 2592 | -8/Materials | Destroyed self via exploding Nuclear Reactor Last Messages --------------- Identified Imp. Flight Unit. Drone sends a signal. T-07 Excavator is excavating. K-01 Serf cleans the Atomic Centrifuge. Acquired Nuclear Core. System corrupted: Matter fused (-5). K-01 Serf collects debris. Critical hit (Destroy). Cooling System destroyed. System corrupted: Component data lost. ALERT: Hostiles spotted, dispatching reinforcements to Terminal M009. S-10 Pest misfires. Destroyed Flight Unit. S-10 Pest IFF system glitched. Nuclear Reactor explodes. EM Pulse Cannon destroyed. Destroyed EM Pulse Cannon. Faulty Imp. Flight Unit destroyed. Destroyed Faulty Imp. Flight Unit. Map ----- +----------------------------------------------------+ | | | | | ?????????????????????????????????????????????????? | | ?????????????????????????????????????????????????? | | ?????????????????????????????????????????????????? | | ?????????????????????????????????????????????????? | | ?????????????????????????????????????????????????? | | ?????????????????????????????????????????????????? | | ?????????????????????????????????????????????????? | | ?????????????????????????????????????????????????? | | ?????????????????????????????????????????????????? | | ?????????????????????????????????????????????????? | | ?????????????????????????????????????????????????? | | ?????????????????????????????????????????????????? | | ?????????????????????????????????????????????????? | | ?????????????????????????????????#???????????????? | | ????????????????????????????????# ###????????????? | | ????????????????????????????????# #???????###### | | ?????????????? ################# ########## | | ????????????? T | | ????????????? "" | | ????????????? | | ?????????????????###+######+######+########## | | ????????????????????????# Y ## #?## # | | ????????????????????????#s ## """ """ #??# # | | ????????????????????????#@ ## """ """ #??# # | | ????????????????????????#s ## """ """ #??# # | | ????????????????????????# =## #??# # | | ????????????????????????# ## !/ #??# # | | ????????????????????????######### =/ #??# # | | ????????????????????????????????# = #??# # | | ????????????????????????????????###########??# # | | ?????????????????????????????????? ######## # | | ????????????????????????????????? # | | ?????????????????????????????????? T | | ????????????????????????????????? | | ????????????????????????????????? ######## | | ??????????????????????????????????#+??????######## | | ??????????????????????????????????????????# | | ??????????????????????????????????????????? | | ??????????????????????????????????????????? | | | ???????????????????????????????????????????? | | ???????????????????????????????????????????? | | ?????????????? ????????????????????????????? | | ????????????? ????????????????????????????? | | ????????????? ?????????????????????????????? | | ????????????? ?????????????????????????????? | | ???????? ???? ??????????????????????????????#+#+ | | ????????" """ ??????#???????????????????????# | | ????????? """ ????? ???????????????????????# | +----------------------------------------------------+ Best States ------------- Heat Dissipation 53 Energy Generation 14 Energy Capacity 280 Matter Stores 300 Matter Capacity 300 Sight Range 16 Terrain Scan Density 10 Armor Coverage 150 Evasion (%) 55 Targeting Accuracy 8 Recoil Reduction 2 Offensive Hacking 10 Item Schematics ----------------- None Robot Schematics ------------------ None Fabricated ------------ Nothing Repaired ---------- Nothing Studied --------- None Alien Tech Used ----------------- None Achievements -------------- None Challenges ------------ None Game ------ Seed MissileTerrorPendant Manual? 0 Play Time 00:20:57 Cumulative 216.6 hours Start 2025.11.20 @ 17:49:25 End 2025.11.21 @ 17:24:48 Sessions 1 Manual Loads 0 Difficulty Rogue Special Mode None Game No. 614 Rogue 613 Adventurer 1 Explorer 0 Win Type - Total 0 Types 0/0/0/0/0/0/0/0/0/0 Lore% 65 Gallery% 62 Achievement% 38 Wizard Run 0 Options --------- Layout 1 ASCII 0 Keyboard 0 Movement Mouse Keybinds 0 Fullscreen 1 Font 24/Smallcaps Map View 50x35 Zoom Use 0% Tactical HUD 0 Map Filters NONE Filters NONE Steam 1 RUN: 7600df90-39ce-4843-8889-14d62033e91f